fUST/lending_fUST_20251227
["ID","MTS","AMOUNT","RATE_DAILY","PERIOD"]
[399869484,1766782239182,-151.0,0.00022795,2]
[399869485,1766782239191,-151.0,0.00022795,2]
[399869486,1766782239201,-151.0,0.00022795,2]
[399869487,1766782239210,-151.0,0.00022795,2]
[399869488,1766782239220,-151.0,0.00022795,2]
[399869489,1766782239231,-151.0,0.00022795,2]
[399869490,1766782239241,-151.0,0.00022795,2]
[399869491,1766782239252,-151.0,0.00022795,2]
[399869492,1766782239261,-204.026924,0.00022795,2]
[399869493,1766782239271,-189.153118,0.00022795,2]
[399869494,1766782239281,-189.153118,0.00022795,2]
[399869495,1766782239291,-189.153118,0.00022795,2]
[399869496,1766782239300,-189.153118,0.00022795,2]
[399869497,1766782239310,-151.0,0.00022795,2]
[399869498,1766782239320,-151.0,0.00022795,2]
[399869499,1766782239330,-153.460968,0.00022795,2]
[399869500,1766782239339,-153.460968,0.00022795,2]
[399869501,1766782239349,-153.460968,0.00022795,2]
[399869502,1766782239359,-153.460968,0.00022795,2]
[399869503,1766782239373,-151.0,0.00022795,2]
[399869504,1766782239383,-151.0,0.00022795,2]
[399869505,1766782239393,-624.382138,0.00022795,2]
[399869506,1766782239402,-624.382138,0.00022795,2]
[399869507,1766782239413,-624.382138,0.00022795,2]
[399869508,1766782239423,-151.0,0.00022795,2]
[399869509,1766782239433,-624.382138,0.00022795,2]
[399869510,1766782239444,-151.0,0.00022795,2]
[399869511,1766782239455,-151.0,0.00022795,2]
[399869512,1766782239465,-151.0,0.00022795,2]
[399869513,1766782239475,-151.0,0.00022795,2]
[399869514,1766782239485,-151.0,0.00022795,2]
[399869515,1766782239495,-151.0,0.00022795,2]
[399869516,1766782239505,-196.864912,0.00022795,2]
[399869517,1766782239514,-151.0,0.00022795,2]
[399869518,1766782239524,-221.765393,0.00022795,2]
[399869519,1766782239534,-151.0,0.00022795,2]
[399869520,1766782239543,-151.0,0.00022795,2]
[399869521,1766782239553,-173.830854,0.00022795,2]
[399869522,1766782239563,-173.830854,0.00022795,2]
[399869523,1766782239572,-173.830854,0.00022795,2]
[399869524,1766782239582,-173.830854,0.00022795,2]
[399869525,1766782239591,-151.0,0.00022795,2]
[399869526,1766782239601,-151.0,0.00022795,2]
[399869527,1766782239610,-151.0,0.00022795,2]
[399869528,1766782239620,-24833.10312656,0.00022795,2]
[399869532,1766782240518,-262.0624995,0.00022785,10]
[399869533,1766782240530,-374.08989249,0.00022785,10]
[399869534,1766782240574,-1059.01307684,0.00022785,10]
[399869545,1766782244541,-1041.66666667,0.00018734,2]
[399869546,1766782244551,-500.0,0.00021092,2]
[399869547,1766782244561,-500.0,0.00021092,2]
[399869548,1766782244570,-400.0,0.00021092,2]
[399869549,1766782244580,-500.0,0.00021092,2]
[399869550,1766782244589,-500.0,0.00021092,2]
[399869551,1766782244600,-500.0,0.00021092,2]
[399869552,1766782244610,-263.73333335,0.00021092,2]
[399869553,1766782245185,-236.26666665,0.00021092,2]
[399869554,1766782245195,-500.0,0.00021092,2]
[399869555,1766782245205,-498.90421279,0.00022785,10]
[399869559,1766782246386,-20503.01364468,0.00022785,10]
[399869560,1766782246398,-1909.91231182,0.00022785,10]
[399869561,1766782246482,-168.46872324,0.00022785,10]
[399869562,1766782246493,-569.37999998,0.00022785,10]
[399869563,1766782246505,-231.19563866,0.00022785,10]
[399869564,1766782246515,-151.0,0.00022795,2]
[399869565,1766782246526,-151.0,0.00022795,2]
[399869566,1766782246536,-151.0,0.00022795,2]
[399869567,1766782246545,-345.910442,0.00022795,2]
[399869568,1766782246555,-294.700474,0.00022795,2]
[399869569,1766782246564,-345.910442,0.00022795,2]
[399869570,1766782246574,-2.36724385,0.00022795,2]
[399869571,1766782246585,-292.33323015,0.00022795,2]
[399869572,1766782246595,-345.910442,0.00022795,2]
[399869573,1766782246604,-294.700474,0.00022795,2]
[399869574,1766782246614,-623.239396,0.00022795,2]
[399869575,1766782246624,-345.910442,0.00022795,2]
[399869576,1766782246635,-5153.02777048,0.00022795,2]
[399869577,1766782246646,-680.90757339,0.00022795,2]
[399869578,1766782300509,150.0,0.0001157,2]
[399869579,1766782455178,520.0,0.0001439,2]
[399869580,1766782734733,474.76748,0.00013699,2]
[399869581,1766782743694,160.06056591,0.00013699,2]
[399869583,1766783133133,-594.60520289,0.0001537,2]
[399869584,1766783229645,530.0,0.0003,120]
[399869586,1766783348117,-4042.0705424,0.00015064,2]
[399869587,1766783348141,-5000.0,0.00015216,2]
[399869588,1766783348165,-262.44166085,0.00015447,2]
[399869589,1766783348188,-300.0,0.00015523,2]
[399869590,1766783348211,-1200.0,0.00015524,2]
[399869591,1766783348238,-500.0,0.00015923,2]
[399869592,1766783348262,-500.0,0.00015923,2]
[399869593,1766783348284,-48.87553606,0.00015923,2]
[399869594,1766783350173,-451.12446394,0.00015923,2]
[399869595,1766783350196,-500.0,0.00015923,2]
[399869596,1766783350217,-500.0,0.00015923,2]
[399869597,1766783350240,-500.0,0.00015923,2]
[399869598,1766783350263,-500.0,0.00015923,2]
[399869599,1766783350284,-500.0,0.00015923,2]
[399869600,1766783350306,-500.0,0.00015923,2]
[399869601,1766783350326,-500.0,0.00015923,2]
[399869602,1766783350348,-500.0,0.00015923,2]
[399869603,1766783350368,-500.0,0.00015923,2]
[399869604,1766783350388,-500.0,0.00015923,2]
[399869605,1766783350409,-500.0,0.00015923,2]
[399869606,1766783350432,-500.0,0.00015923,2]
[399869607,1766783350453,-388.58297359,0.00015923,2]
[399869608,1766783350473,-500.0,0.00015923,2]
[399869609,1766783350495,-500.0,0.00015923,2]
[399869610,1766783350516,-505.24691685,0.00015923,2]
[399869611,1766783350538,-500.0,0.00015923,2]
[399869612,1766783350558,-444.82538018,0.00015923,2]
[399869613,1766783350578,-500.0,0.00015923,2]
[399869614,1766783350599,-500.0,0.00015923,2]
[399869615,1766783350620,-516.8807111,0.00015923,2]
[399869616,1766783350642,-500.0,0.00015923,2]
[399869617,1766783350663,-276.55898834,0.00015923,2]
[399869618,1766783350684,-500.0,0.00015923,2]
[399869619,1766783350705,-500.0,0.00015923,2]
[399869620,1766783350728,-500.0,0.00015923,2]
[399869621,1766783350753,-500.0,0.00015923,2]
[399869622,1766783350772,-157.60139093,0.00015952,2]
[399869623,1766783350794,-300.0,0.00015998,2]
[399869624,1766783350815,-300.0,0.00015998,2]
[399869625,1766783350835,-300.0,0.00015998,2]
[399869626,1766783350858,-500.0,0.00015999,2]
[399869627,1766783350880,-500.0,0.00015999,2]
[399869628,1766783350902,-500.0,0.00015999,2]
[399869629,1766783351141,-500.0,0.00015999,2]
[399869630,1766783351165,-500.0,0.00015999,2]
[399869631,1766783351187,-500.0,0.00015999,2]
[399869632,1766783351208,-500.0,0.00015999,2]
[399869633,1766783351231,-500.0,0.00015999,2]
[399869634,1766783351257,-500.0,0.00015999,2]
[399869635,1766783351279,-500.0,0.00015999,2]
[399869636,1766783351301,-500.0,0.00015999,2]
[399869637,1766783351322,-500.0,0.00015999,2]
[399869638,1766783351343,-456.44707284,0.00015999,2]
[399869639,1766783351364,-500.0,0.00015999,2]
[399869640,1766783351386,-7.03075648,0.00015999,2]
[399869641,1766783365105,-3513.7814676,0.0001595,2]
[399869642,1766783365128,-492.96924352,0.00015999,2]
[399869643,1766783365150,-500.0,0.00015999,2]
[399869644,1766783365172,-500.0,0.00015999,2]
[399869645,1766783365194,-500.0,0.00015999,2]
[399869646,1766783365216,-500.0,0.00015999,2]
[399869647,1766783365236,-279.56,0.00016,14]
[399869648,1766783365257,-500.0,0.00016,2]
[399869649,1766783365277,-500.0,0.00016,2]
[399869650,1766783365297,-39.37452579,0.00016,2]
[399869651,1766783369107,-5000.0,0.0001579,2]
[399869652,1766783369134,-460.62547421,0.00016,2]
[399869653,1766783369156,-500.0,0.00016,2]
[399869654,1766783369177,-186.83633666,0.00016,2]
[399869655,1766783369199,-652.0,0.00016026,2]
[399869656,1766783369220,-76.45809094,0.00016052,2]
[399869657,1766783374143,-182.37036435,0.00016052,2]
[399869701,1766783432755,-913.68375377,0.0001681,2]
[399869702,1766783432770,-498.31389976,0.0001681,2]
[399869703,1766783432780,-665.0,0.0001681,2]
[399869704,1766783432790,-65.36167487,0.00017447,2]
[399869705,1766783432802,-244.31948493,0.00017447,2]
[399869706,1766783432812,-131.43265217,0.00018975,2]
[399869707,1766783432824,-368.56734783,0.00018975,2]
[399869708,1766783432834,-290.85354172,0.00018975,2]
[399869709,1766783432854,-209.14645828,0.00018975,2]
[399869710,1766783432864,-300.0,0.00018975,2]
[399869711,1766783432874,-250.0,0.00018976,2]
[399869712,1766783432884,-25820.70034977,0.00018976,2]
[399869735,1766783438528,-500.0,0.00018975,2]
[399869737,1766783438539,-500.0,0.00018975,2]
[399869739,1766783438549,-500.0,0.00018975,2]
[399869741,1766783438559,-500.0,0.00018975,2]
[399869743,1766783438570,-500.0,0.00018975,2]
[399869745,1766783438580,-500.0,0.00018975,2]
[399869747,1766783438590,-500.0,0.00018975,2]
[399869749,1766783438603,-6891.4748693,0.00018976,2]
[399869751,1766783438615,-509.23438404,0.00018976,2]
[399869754,1766783438627,-1583.79013717,0.00018976,2]
[399869756,1766783438640,-10750.22690603,0.00018976,2]
[399869758,1766783438649,-8713.44061889,0.00019325,2]
[399869760,1766783438659,-159.77,0.00019639,2]
[399869762,1766783438669,-174.9408781,0.0002015,2]
[399869764,1766783438679,-474.76748,0.00020187,2]
[399869766,1766783438689,-1041.66666667,0.00020388,2]
[399869768,1766783438699,-6274.70685783,0.00020542,2]
[399869770,1766783438712,-1490.77593557,0.00020542,2]
[399869772,1766783438722,-193.08333654,0.00020683,2]
[399869774,1766783438734,-226.91666346,0.00020683,2]
[399869776,1766783438746,-937.57046299,0.0002073,2]
[399869778,1766783438756,-207.0,0.00020895,2]
[399869780,1766783438767,-157.60139091,0.00020895,2]
[399869782,1766783438777,-168.149431,0.00020995,2]
[399869784,1766783438787,-158.238076,0.00020995,2]
[399869786,1766783438798,-151.0,0.00020995,2]
[399869788,1766783438808,-151.0,0.00020995,2]
[399869790,1766783438817,-42.27397564,0.00020995,2]
[399869837,1766783440665,-257.19282763,0.00018975,2]
[399869839,1766783440676,-303.4875366,0.00020975,2]
[399869840,1766783440685,-108.72602436,0.00020995,2]
[399869841,1766783440695,-151.0,0.00020995,2]
[399869842,1766783440704,-151.0,0.00020995,2]
[399869843,1766783440714,-151.0,0.00020995,2]
[399869846,1766783440950,-151.0,0.00020995,2]
[399869847,1766783440960,-151.0,0.00020995,2]
[399869848,1766783440970,-151.0,0.00020995,2]
[399869849,1766783440980,-151.0,0.00020995,2]
[399869850,1766783440994,-151.0,0.00020995,2]
[399869851,1766783441003,-151.0,0.00020995,2]
[399869852,1766783441013,-151.0,0.00020995,2]
[399869853,1766783441022,-151.0,0.00020995,2]
[399869854,1766783441033,-151.0,0.00020995,2]
[399869855,1766783441043,-288.950111,0.00020995,2]
[399869856,1766783441055,-151.0,0.00020995,2]
[399869857,1766783441065,-151.0,0.00020995,2]
[399869858,1766783441075,-151.0,0.00020995,2]
[399869859,1766783441085,-151.0,0.00020995,2]
[399869860,1766783441095,-151.322495,0.00020995,2]
[399869861,1766783441104,-151.322495,0.00020995,2]
[399869862,1766783441113,-151.322495,0.00020995,2]
[399869863,1766783441123,-151.322495,0.00020995,2]
[399869864,1766783441133,-162.02,0.00021,2]
[399869865,1766783441143,-160.03,0.00021,2]
[399869866,1766783441153,-1725.81656471,0.00021,2]
[399869867,1766783441165,-264.12583363,0.00021,2]
[399869883,1766783444745,-308.50655426,0.00018975,2]
[399869884,1766783444755,-224.09785679,0.00018975,2]
[399869885,1766783444765,-271.64726446,0.00018975,2]
[399869886,1766783444775,-154.28699706,0.00018975,2]
[399869887,1766783444784,-500.0,0.00018975,2]
[399869888,1766783444794,-167.24965743,0.00018975,2]
[399869889,1766783444804,-1128.62760166,0.00021,2]
[399869890,1766783444813,-2132.14422901,0.00021325,2]
[399869891,1766783444825,-694.0900242,0.00021325,2]
[399869908,1766783446578,-5887.20636563,0.00021325,2]
[399869909,1766783446588,-157.60139091,0.00021563,2]
[399869910,1766783446597,-500.0,0.00021856,7]
[399869911,1766783446607,-416.0,0.00022156,2]
[399869912,1766783446616,-153.0,0.00022164,2]
[399869913,1766783446626,-153.0,0.00022164,2]
[399869914,1766783446636,-153.0,0.00022164,2]
[399869915,1766783446645,-157.60139091,0.0002223,2]
[399869916,1766783446655,-306.0,0.00022477,2]
[399869917,1766783446664,-153.0,0.00022477,2]
[399869918,1766783446673,-153.0,0.00022477,2]
[399869919,1766783446683,-153.0,0.00022477,2]
[399869920,1766783446692,-587.0,0.00022545,2]
[399869921,1766783446702,-315.6603742,0.00022548,2]
[399869922,1766783446711,-8465.4371287,0.00022629,2]
[399869923,1766783446721,-333.88439252,0.00022795,2]
[399869924,1766783446731,-345.0,0.00022795,3]
[399869925,1766783446741,-318.53092932,0.00022795,3]
[399869926,1766783446750,-155.4633356,0.00022822,2]
[399869927,1766783446759,-193.1241324,0.00022822,2]
[399869928,1766783446769,-599.0957079,0.00022822,2]
[399869929,1766783446778,-183.9666937,0.00022822,2]
[399869930,1766783446788,-193.1241324,0.00022822,2]
[399869931,1766783446797,-599.0957079,0.00022822,2]
[399869932,1766783446806,-157.60139091,0.00022898,2]
[399869933,1766783446816,-20190.0,0.00022972,10]
[399869934,1766783446826,-349.78224558,0.00022975,2]
[399869935,1766783446835,-153.0,0.00022986,2]
[399869936,1766783446845,-153.0,0.00022986,2]
[399869937,1766783446855,-153.0,0.00022986,2]
[399869938,1766783446864,-153.0,0.00022986,2]
[399869939,1766783446874,-153.0,0.00022986,2]
[399869940,1766783446883,-153.0,0.00022986,2]
[399869941,1766783446894,-153.0,0.00022986,2]
[399869942,1766783446903,-307.4894839,0.00022986,2]
[399869943,1766783446913,-201.08119693,0.00022997,2]
[399869944,1766783446922,-41680.22405512,0.00022998,2]
[399869945,1766783466106,500.0,0.00013273,2]
[399869946,1766783466980,500.0,0.00013273,2]
[399869947,1766783479244,500.0,0.00013273,2]
[399869948,1766783481616,300.0,0.00013673,2]
[399869949,1766783485200,500.0,0.00013699,2]
[399869950,1766783485705,500.0,0.00013273,2]
[399869951,1766783486374,500.0,0.00013273,2]
[399869952,1766783487529,500.0,0.00013699,2]
[399869953,1766783488806,500.0,0.00013699,2]
[399869954,1766783488936,500.0,0.00013273,2]
[399869955,1766783489065,500.0,0.00013699,2]
[399869956,1766783489911,500.0,0.00013273,2]
[399869957,1766783524231,500.0,0.00013699,2]
[399869958,1766783526845,799.37285436,0.00014247,2]
[399869959,1766783526872,200.62714564,0.00014247,2]
[399869960,1766783526900,500.0,0.00013699,2]
[399869961,1766783526939,500.0,0.00013699,2]
[399869962,1766783526967,500.0,0.00013699,2]
[399869963,1766783527079,1000.0,0.00013821,2]
[399869964,1766783527424,500.0,0.00013273,2]
[399869965,1766783527464,500.0,0.00013699,2]
[399869966,1766783527507,500.0,0.00013273,2]
[399869967,1766783527570,347.4584992,0.00013821,2]
[399869968,1766783527593,652.5415008,0.00013821,2]
[399869969,1766783528020,500.0,0.00013273,2]
[399869970,1766783528087,513.41389064,0.00013821,2]
[399869971,1766783530045,523.70874468,0.00013699,2]
[399869973,1766783573850,150.0,0.00011492,2]
[399869974,1766783583913,500.0,0.00013699,2]
[399869975,1766783583958,500.0,0.00013699,2]
[399869976,1766783583988,500.0,0.00013699,2]
[399869977,1766783586356,500.0,0.00013699,2]
[399869978,1766783586485,500.0,0.00013699,2]
[399869979,1766783586671,586.8270612,0.00013699,2]
[399869980,1766783586747,500.0,0.00013699,2]
[399869981,1766783586805,1000.0,0.00014247,2]
[399869982,1766783586863,500.0,0.00013699,2]
[399869983,1766783586921,1000.0,0.00014247,2]
[399869984,1766783590135,500.0,0.00013699,2]
[399869985,1766783591755,500.0,0.00013699,2]
[399869986,1766783593060,500.0,0.00013699,2]
[399869987,1766783593572,73.51880268,0.00013699,2]
[399869988,1766783593596,426.48119732,0.00013699,2]
[399869989,1766783593664,500.0,0.00013699,2]
[399869990,1766783597386,500.0,0.00013699,2]
[399869991,1766783599832,500.0,0.00013699,2]
[399869992,1766783599971,500.0,0.00013699,2]
[399869993,1766783601052,500.0,0.00013699,2]
[399869994,1766783602725,500.0,0.00013699,2]
[399869995,1766783602753,598.96883992,0.00013699,2]
[399869996,1766783602925,500.0,0.00013699,2]
[399869997,1766783603178,500.0,0.00013699,2]
[399869998,1766783603531,500.0,0.00013699,2]
[399869999,1766783603633,500.0,0.00013699,2]
[399870000,1766783603859,500.0,0.00013273,2]
[399870001,1766783603909,500.0,0.00013821,2]
[399870002,1766783606007,300.0,0.00013673,2]
[399870003,1766783606052,300.0,0.00014221,2]
[399870004,1766783606134,500.0,0.00013699,2]
[399870005,1766783606226,500.0,0.00013699,2]
[399870006,1766783606923,500.0,0.00013699,2]
[399870007,1766783608365,266.92105761,0.00013699,2]
[399870008,1766783608406,500.0,0.00013699,2]
[399870009,1766783608852,107.63890515,0.00013699,2]
[399870010,1766783608878,346.11475237,0.00013699,2]
[399870011,1766783610539,500.0,0.00013273,2]
[399870012,1766783610567,1000.0,0.00013821,2]
[399870013,1766783610613,500.0,0.00014368,2]
[399870014,1766783611011,500.0,0.00013273,2]
[399870015,1766783611068,500.0,0.00014368,2]
[399870016,1766783611118,1000.0,0.00013821,2]
[399870017,1766783612162,500.0,0.00013699,2]
[399870018,1766783612192,500.0,0.00013699,2]
[399870019,1766783612977,500.0,0.00013699,2]
[399870020,1766783613068,500.0,0.00013699,2]
[399870021,1766783613567,500.0,0.00013273,2]
[399870022,1766783613619,500.0,0.00013821,2]
[399870023,1766783614279,500.0,0.00013273,2]
[399870024,1766783614329,500.0,0.00013821,2]
[399870025,1766783643665,346.25200149,0.00013699,2]
[399870026,1766783643714,500.0,0.00013699,2]
[399870027,1766783643770,807.64324614,0.00014247,2]
[399870028,1766783643791,192.35675386,0.00014247,2]
[399870029,1766783646128,500.46970248,0.00013273,2]
[399870030,1766783646193,500.0,0.00013699,2]
[399870031,1766783646226,250.48995064,0.00014247,2]
[399870032,1766783646402,500.0,0.00013699,2]
[399870033,1766783646431,500.0,0.00013273,2]
[399870034,1766783646461,1000.0,0.00014247,2]
[399870035,1766783646487,1000.0,0.00013821,2]
[399870036,1766783646621,500.0,0.00013699,2]
[399870037,1766783649341,500.0,0.00013273,2]
[399870038,1766783649400,1000.0,0.00013821,2]
[399870039,1766783649860,501.2126787,0.00013699,2]
[399870041,1766783704071,260.13558125,0.00013699,2]
[399870042,1766783705779,500.0,0.00013699,2]
[399870043,1766783705830,1000.0,0.00014247,2]
[399870044,1766783706817,500.1765937,0.00013699,2]
[399870045,1766783707569,500.0988149,0.00013699,2]
[399870046,1766783707723,295.06992447,0.00013699,2]
[399870047,1766783707747,205.6035151,0.00013699,2]
[399870048,1766783710311,500.71314096,0.00013699,2]
[399870049,1766783710550,502.68659046,0.00013699,2]
[399870050,1766783710592,177.97640411,0.00013699,2]
[399870051,1766783710721,500.54754333,0.00013699,2]
[399870052,1766783711686,4999.0,0.0003,120]
[399870053,1766783714228,500.39251583,0.00013699,2]
[399870054,1766783716559,524.47276149,0.00013699,2]
[399870055,1766783716600,500.32232428,0.00013699,2]
[399870056,1766783716819,455.65980227,0.00013699,2]
[399870057,1766783717006,500.71064825,0.00013699,2]
[399870058,1766783717523,500.24781448,0.00013699,2]
[399870059,1766783717986,159.33099895,0.00013699,2]
[399870060,1766783719527,500.19821897,0.00013699,2]
[399870061,1766783719561,500.71188809,0.00013699,2]
[399870062,1766783719594,500.30541626,0.00013699,2]
[399870063,1766783720185,500.81848271,0.00013699,2]
[399870064,1766783720618,500.69817016,0.00013699,2]
[399870065,1766783720725,514.1181456,0.00013699,2]
[399870066,1766783720930,500.0,0.00013273,2]
[399870067,1766783722989,210.15459226,7.961e-05,2]
[399870068,1766783723174,500.86759667,0.00013699,2]
[399870069,1766783724208,166.07175525,0.00013699,2]
[399870070,1766783724726,500.65201175,0.00013699,2]
[399870071,1766783724953,76.74966277,0.00013699,2]
[399870072,1766783724979,423.46130275,0.00013699,2]
[399870073,1766783725053,500.20372006,0.00013699,2]
[399870074,1766783726698,500.5438368,0.00013699,2]
[399870075,1766783727241,500.0,0.00013273,2]
[399870076,1766783729873,500.60193281,0.00013699,2]
[399870077,1766783743321,2520.13111824,0.0001439,2]
[399870078,1766783766440,2110.52378916,0.0001439,2]
[399870079,1766783766969,494.91178971,0.00013699,2]
[399870080,1766783767003,500.0,0.00013699,2]
[399870081,1766783767041,1000.0,0.00014247,2]
[399870082,1766783767336,500.0,0.00013273,2]
[399870083,1766783789640,449.63251047,0.0001439,2]
[399870084,1766783789664,4330.1935044,0.0001439,2]
[399870085,1766783823376,608.76249415,0.00013699,2]
[399870086,1766783823438,500.0,0.00013273,2]
[399870087,1766783823473,500.0,0.00013699,2]
[399870088,1766783825992,500.0,0.00013699,2]
[399870089,1766783826047,501.35507665,0.00013699,2]
[399870090,1766783826346,187.91552209,0.00013699,2]
[399870091,1766783826394,500.0,0.00013699,2]
[399870092,1766783826544,500.0,0.00013699,2]
[399870093,1766783826597,500.0,0.00014247,2]
[399870094,1766783826683,157.09460018,0.00013699,2]
[399870095,1766783826759,500.0,0.00013699,2]
[399870096,1766783826817,501.40733377,0.00014247,2]
[399870097,1766783827233,213.28146876,0.00013273,2]
[399870098,1766783827258,286.71853124,0.00013273,2]
[399870099,1766783827296,1000.0,0.00013821,2]
[399870100,1766783827330,500.0,0.00013273,2]
[399870101,1766783827364,1000.0,0.00014368,2]
[399870102,1766783827398,1000.0,0.00013821,2]
[399870103,1766783827427,1500.0,0.00014368,2]
[399870104,1766783827618,504.90094065,0.00013699,2]
[399870105,1766783829455,150.0,0.00011566,2]
[399870106,1766783829641,150.0,0.00012617,2]
[399870107,1766783836743,694.43451911,0.0001439,2]
[399870108,1766783845228,3213.956009,0.0001439,2]
[399870109,1766783845254,1786.043991,0.0001439,2]
[399870110,1766783884164,500.0,0.00013699,2]
[399870111,1766783884222,319.5514312,0.00014247,2]
[399870112,1766783884251,500.71346508,0.00013273,2]
[399870113,1766783943296,500.0,0.00013699,2]
[399870114,1766783943325,500.0,0.00013699,2]
[399870115,1766783943354,1000.0,0.00014247,2]
[399870116,1766783943382,1000.0,0.00014247,2]
[399870118,1766784003686,500.0,0.00013699,2]
[399870119,1766784003931,500.0,0.00013699,2]
[399870120,1766784003959,500.0,0.00013699,2]
[399870121,1766784003988,500.0,0.00013699,2]
[399870122,1766784004017,1076.16135034,0.00014247,2]
[399870123,1766784004047,1000.0,0.00014247,2]
[399870124,1766784004076,1066.554326,0.00014247,2]
[399870125,1766784004269,489.92114348,0.00013273,2]
[399870126,1766784006955,500.61286465,0.00013273,2]
[399870127,1766784007106,500.55170221,0.00013273,2]
[399870128,1766784007146,1000.0,0.00013821,2]
[399870129,1766784007185,1500.0,0.00014368,2]
[399870130,1766784007257,500.0,0.00013699,2]
[399870131,1766784007309,366.20861332,0.00013273,2]
[399870132,1766784007336,133.79138668,0.00013273,2]
[399870133,1766784007369,1000.0,0.00014247,2]
[399870134,1766784063017,1000.0,0.00014247,2]
[399870135,1766784063053,500.0,0.00013699,2]
[399870136,1766784063117,500.0,0.00013699,2]
[399870137,1766784063178,1000.0,0.00014247,2]
[399870138,1766784063211,500.0,0.00013699,2]
[399870139,1766784065938,500.0,0.00013273,2]
[399870140,1766784068824,4866.21861332,0.0001439,2]
[399870141,1766784068851,133.78138668,0.0001439,2]
[399870142,1766784075217,500.0,0.00013699,2]
[399870143,1766784077690,500.0,0.00013699,2]
[399870144,1766784078362,500.0,0.00013699,2]
[399870145,1766784079188,500.0,0.00013699,2]
[399870146,1766784082387,300.0,0.00013673,2]
[399870147,1766784085596,150.0,0.00011429,2]
[399870148,1766784085947,500.0,0.00013273,2]
[399870149,1766784091839,5000.0,0.0001439,2]
[399870150,1766784115385,2050.01,0.0001439,2]
[399870151,1766784115412,2949.99,0.0001439,2]
[399870152,1766784126415,500.0,0.00013699,2]
[399870153,1766784126478,410.84290088,0.00014247,2]
[399870154,1766784126625,1000.0,0.00014247,2]
[399870155,1766784126674,500.0,0.00013273,2]
[399870156,1766784126704,500.0,0.00013699,2]
[399870157,1766784129118,500.0,0.00013699,2]
[399870158,1766784139395,3639.17709912,0.0001439,2]
[399870159,1766784139420,1360.82290088,0.0001439,2]
[399870160,1766784162373,5000.0,0.0001439,2]
[399870161,1766784182715,500.0,0.00013699,2]
[399870162,1766784182750,500.0,0.00013273,2]
[399870163,1766784182777,1000.0,0.00013821,2]
[399870164,1766784182805,1000.90192695,0.00014247,2]
[399870165,1766784182832,638.28517217,0.00013821,2]
[399870166,1766784182855,361.71482783,0.00013821,2]
[399870167,1766784182881,500.0,0.00013699,2]
[399870168,1766784182907,500.0,0.00013273,2]
[399870169,1766784182933,500.0,0.00013699,2]
[399870170,1766784182961,500.56383034,0.00013699,2]
[399870171,1766784182988,432.59434118,0.00014247,2]
[399870172,1766784183014,251.39489873,0.00014247,2]
[399870173,1766784183148,500.0,0.00013273,2]
[399870174,1766784183201,500.0,0.00013821,2]
[399870175,1766784185633,5000.0,0.0001439,2]
[399870176,1766784186209,500.0,0.00013273,2]
[399870177,1766784187440,453.74210192,0.00013699,2]